[Event "58th Akiba Rubinstein D 2022"]
[Site "Polanica-Zdroj"]
[Date "2022.08.13"]
[Round "1.8"]
[White "Szczepanski, Krzysztof"]
[Black "Bartosik, Dawid"]
[Result "0-1"]
[ECO "E92"]
[WhiteElo "1790"]
[BlackElo "1443"]
[Annotator "NA RC COMBH"]
[PlyCount "75"]
[EventDate "2022.08.13"]
[EventCountry "POL"]
[SourceTitle "playchess.com"]
[Source "ChessBase"]
[SourceQuality "1"]
[TimeControl "40/5400+30:1800+30"]

1. Nf3 {[%emt 0:08:16]} Nf6 {[%emt 0:00:11]} 2. d4 {[%emt 0:00:15]} g6 {[%emt 0:00:23]} 3. c4 {[%emt 0:00:32]} Bg7 {[%emt 0:00:26]} 4. Nc3 {[%emt 0:00:06]} O-O {[%emt 0:00:30]} 5. e4 {[%emt 0:00:50]} d6 {[%emt 0:00:14]} 6. Be2 {[%emt 0:01:20]} e5 {[%emt 0:01:22]} 7. dxe5 {[%emt 0:00:31]} dxe5 {[%emt 0:00:14]} 8. Qxd8 {[%emt 0:02:00]} Rxd8 {[%emt 0:00:09]} 9. Bg5 {[%emt 0:01:47]} Nc6 {[%emt 0:06:38]} 10. Nd5 {[%emt 0:00:33]} Rd6 {[%emt 0:05:47]} 11. Bxf6 {[%emt 0:03:05]} Bxf6 {[%emt 0:00:37]} 12. Nxc7 {[%emt 0:00:29]} Rb8 {[%emt 0:00:14]} 13. Nd5 {[%emt 0:00:37]} Bg7 {[%emt 0:00:53]} 14. O-O Bg4 15. Rac1 {[%emt 0:10:00]} Bxf3 {[%emt 0:15:35]} 16. Bxf3 {[%emt 0:00:42]} Nd4 {[%emt 0:00:18]} 17. Bd1 {[%emt 0:00:13]} Kf8 {[%emt 0:01:35]} 18. g3 {[%emt 0:03:50]} f5 {[%emt 0:03:50]} 19. exf5 {[%emt 0:01:38]} gxf5 {[%emt 0:00:43]} 20. Kg2 {[%emt 0:02:02]} Rc8 {[%emt 0:03:09]} 21. b3 {[%emt 0:09:39]} Rxd5 {[%emt 0:01:02]} 22. Rb1 {[%emt 0:01:07]} Rd6 {[%emt 0:01:43]} 23. h4 {[%emt 0:02:00]} Ke7 {[%emt 0:02:21]} 24. Re1 {[%emt 0:01:45]} Kf6 {[%emt 0:03:47]} 25. a4 {[%emt 0:01:56]} Bh6 {[%emt 0:01:36]} 26. Rb2 {[%emt 0:02:00]} Bf8 {[%emt 0:04:52]} 27. Ra2 {[%emt 0:00:17]} Rb6 {[%emt 0:03:24]} 28. Rb2 {[%emt 0:04:11]} Rxc4 {[%emt 0:00:58]} 29. a5 {[%emt 0:00:31]} Rbb4 {[%emt 0:00:36]} 30. Be2 {[%emt 0:02:46]} Rc5 {[%emt 0:04:09]} 31. a6 {[%emt 0:00:58]} bxa6 {[%emt 0:02:50]} 32. Bxa6 {[%emt 0:00:24]} Rc3 {[%emt 0:03:45]} 33. Bf1 {[%emt 0:03:37]} Bc5 {[%emt 0:03:26]} 34. Be2 {[%emt 0:02:01]} a5 {[%emt 0:02:04]} 35. Ra2 {[%emt 0:00:28]} Nxb3 {[%emt 0:02:42]} 36. g4 {[%emt 0:02:19]} fxg4 {[%emt 0:01:58]} 37. Bxg4 {[%emt 0:00:03]} Rxg4+ {[%emt 0:00:18]} 38. Kf1 {[%emt 0:00:03]} 0-1

[Event "58th Akiba Rubinstein D 2022"]
[Site "Polanica-Zdroj"]
[Date "2022.08.13"]
[Round "1.9"]
[White "Klama, Andrzej"]
[Black "Para, Tomasz"]
[Result "1/2-1/2"]
[ECO "C68"]
[WhiteElo "1441"]
[BlackElo "1796"]
[Annotator "NA RC COMBH"]
[PlyCount "80"]
[EventDate "2022.08.13"]
[EventCountry "POL"]
[SourceTitle "playchess.com"]
[Source "ChessBase"]
[SourceQuality "1"]
[TimeControl "40/5400+30:1800+30"]

1. e4 {[%emt 0:00:07]} e5 {[%emt 0:00:12]} 2. Nf3 {[%emt 0:00:14]} Nc6 {[%emt 0:00:02]} 3. Bb5 {[%emt 0:00:19]} a6 {[%emt 0:00:05]} 4. Bxc6 {[%emt 0:00:21]} dxc6 {[%emt 0:00:33]} 5. O-O {[%emt 0:00:18]} Bd6 {[%emt 0:02:37]} 6. h3 {[%emt 0:00:34]} Ne7 {[%emt 0:10:51]} 7. c3 {[%emt 0:02:03]} O-O {[%emt 0:04:18]} 8. d4 {[%emt 0:02:54]} Ng6 {[%emt 0:04:13]} 9. dxe5 {[%emt 0:03:13]} Nxe5 {[%emt 0:00:13]} 10. Nxe5 {[%emt 0:01:11]} Bxe5 {[%emt 0:00:07]} 11. Qxd8 {[%emt 0:01:16]} Rxd8 {[%emt 0:00:04]} 12. f4 {[%emt 0:00:23]} Bf6 {[%emt 0:03:45]} 13. Nd2 {[%emt 0:00:56]} c5 {[%emt 0:13:52]} 14. Nf3 {[%emt 0:01:30]} b6 {[%emt 0:05:43]} 15. Be3 {[%emt 0:04:38]} Bb7 {[%emt 0:00:21]} 16. e5 {[%emt 0:00:34]} Be7 {[%emt 0:00:07]} 17. Kf2 {[%emt 0:01:37]} Rd3 {[%emt 0:05:42]} 18. Rfd1 {[%emt 0:03:09]} Rad8 {[%emt 0:00:37]} 19. Rxd3 {[%emt 0:00:32]} Rxd3 {[%emt 0:00:04]} 20. Ke2 {[%emt 0:00:19]} Rd8 {[%emt 0:04:21]} 21. g4 {[%emt 0:01:07]} Be4 {[%emt 0:04:21]} 22. Nd2 {[%emt 0:02:15]} Bg2 {[%emt 0:05:25]} 23. Kf2 {[%emt 0:00:17]} Bb7 {[%emt 0:00:02]} 24. g5 {[%emt 0:02:22]} Bc8 {[%emt 0:03:52]} 25. h4 {[%emt 0:03:25]} h5 {[%emt 0:10:48]} 26. c4 {[%emt 0:08:30]} Be6 {[%emt 0:01:38]} 27. Ke2 {[%emt 0:06:47]} Bg4+ {[%emt 0:00:17]} 28. Kf2 {[%emt 0:00:58]} Kf8 {[%emt 0:01:31]} 29. a3 {[%emt 0:04:27]} a5 {[%emt 0:00:38]} 30. Ne4 {[%emt 0:00:47]} Be6 {[%emt 0:01:17]} 31. b3 {[%emt 0:00:48]} Rd3 {[%emt 0:00:27]} 32. Rb1 {[%emt 0:06:28]} Bg4 {[%emt 0:00:48]} 33. Ng3 {[%emt 0:02:05]} g6 {[%emt 0:00:33]} 34. Ne2 {[%emt 0:05:39]} Bf5 {[%emt 0:01:02]} 35. Rb2 {[%emt 0:02:52]} Rd1 {[%emt 0:01:01]} 36. Ng1 {[%emt 0:00:30]} Ra1 {[%emt 0:02:35]} 37. a4 {[%emt 0:00:50]} Rb1 {[%emt 0:00:22]} 38. Rxb1 {[%emt 0:00:46]} Bxb1 {[%emt 0:00:03]} 39. Nf3 {[%emt 0:00:14]} Bc2 {[%emt 0:00:16]} 40. Nd2 {[%emt 0:00:06]} Ke8 1/2-1/2

[Event "58th Akiba Rubinstein D 2022"]
[Site "Polanica-Zdroj"]
[Date "2022.08.13"]
[Round "1.10"]
[White "Liskiewicz, Jakub"]
[Black "Rychlik, Michal"]
[Result "1/2-1/2"]
[ECO "D14"]
[WhiteElo "1910"]
[BlackElo "1354"]
[Annotator "TA"]
[PlyCount "44"]
[EventDate "2022.08.13"]
[EventCountry "POL"]
[SourceTitle "playchess.com"]
[Source "ChessBase"]
[SourceQuality "1"]
[TimeControl "40/5400+30:1800+30"]

{[%evp 16,44,22,21,14,2,11,14,20,12,29,26,28,12,40,0,0,-78,-69,-80,-78,-72,-81,-75,-66,-87,-78,-58,-48,-77,-80]} 1. d4 {[%emt 0:00:03]} d5 {[%emt 0:00:30]} 2. c4 {[%emt 0:00:09]} c6 {[%emt 0:00:02]} 3. Nc3 {[%emt 0:00:19]} Nf6 {[%emt 0:00:01]} 4. cxd5 {[%emt 0:00:13]} cxd5 {[%emt 0:00:04]} 5. Bf4 {[%emt 0:00:10]} Nc6 {[%emt 0:03:14]} 6. Nf3 {[%emt 0:01:15]} Bf5 {[%emt 0:00:31]} 7. Qb3 {[%emt 0:01:54]} Na5 {[%emt 0:00:01]} 8. Qa4+ {[%emt 0:01:55]} Bd7 {[%emt 0:00:01]} 9. Qc2 {[%emt 0:01:40]} Rc8 {[%emt 0:08:44][%cal Of6e4] D14: Slav Defence: Exchange variation with ...Bf5.} 10. e3 {[%emt 0:03:29]} e6 {[%emt 0:02:40][%cal Of6e4]} 11. Bd3 {[%emt 0:01:32]} Be7 {[%emt 0:01:05] The position is equal. 11...Bb4 gains popularity.} 12. O-O {[%emt 0:01:08]} O-O {[%emt 0:03:35]} 13. Ne5 {[%emt 0:00:27]} a6 {[%emt 0:03:54][%cal Od7b5]} 14. Qe2 {[%emt 0:08:13]} b5 {[%emt 0:06:55][%cal Bb7b5,Bb5b4][%mdl 32] [#]} 15. Qf3 $146 {[%emt 0:06:57]} ({Predecessor:} 15. Rfc1 Be8 16. Rc2 Nd7 17. Nf3 Nb6 18. Rac1 Nc6 19. a3 f6 {½-½ (19) Areshchenko,A (2678)-Kuzubov,Y (2651) Rivne 2016}) 15... Nc4 {[%emt 0:03:04]} 16. Nxc4 (16. Qe2 $11 {keeps the balance.}) 16... dxc4 $17 {[%emt 0:05:16]} 17. Bc2 {[%emt 0:05:12]} Bc6 {[%emt 0:05:15]} 18. Qh3 {[%emt 0:02:37]} b4 {[%emt 0:00:41]} 19. Ne2 {[%emt 0:00:54]} Be4 {[%emt 0:03:20]} 20. Rfc1 {[%emt 0:04:03]} Qa5 {[%emt 0:02:36]} 21. Bxe4 {[%emt 0:08:16]} Nxe4 {[%emt 0:00:01]} 22. Qf3 {[%emt 0:00:28] [#]} c3 $1 {[%emt 0:03:47] Weighted Error Value: White=0.18 (very precise) /Black=0.05 (flawless)} 1/2-1/2

[Event "58th Akiba Rubinstein D 2022"]
[Site "Polanica-Zdroj"]
[Date "2022.08.13"]
[Round "1.11"]
[White "Jankowski, Franciszek"]
[Black "Huchwajda, Katarzyna"]
[Result "1-0"]
[ECO "D37"]
[WhiteElo "1483"]
[BlackElo "1768"]
[Annotator "NA RC COMBH"]
[PlyCount "67"]
[EventDate "2022.08.13"]
[EventCountry "POL"]
[SourceTitle "playchess.com"]
[Source "ChessBase"]
[SourceQuality "1"]
[TimeControl "40/5400+30:1800+30"]

1. d4 d5 2. c4 e6 3. Nc3 Nf6 4. Nf3 Be7 5. Bf4 c6 6. e3 O-O 7. c5 Nbd7 8. Bd3 a5 9. a3 Re8 10. h3 b6 11. b4 b5 12. Bxb5 cxb5 13. Nxb5 Ba6 14. Nc7 e5 15. dxe5 Qxc7 16. exf6 Qb7 17. fxe7 axb4 18. Bd6 Bc4 19. Nd2 b3 20. Nxc4 dxc4 21. Qd4 b2 22. Rb1 Nf6 23. O-O Qc6 24. Rxb2 Rxa3 25. Qxc4 Ne4 26. Qb5 Qa8 27. Rfb1 Ra1 28. Rxa1 Qxa1+ 29. Rb1 Qa8 30. Qxe8+ Qxe8 31. Rb8 Nf6 32. Rxe8+ Nxe8 33. c6 f5 34. c7 1-0

[Event "58th Akiba Rubinstein D 2022"]
[Site "Polanica-Zdroj"]
[Date "2022.08.13"]
[Round "1.12"]
[White "Kryzia, Wiktor"]
[Black "Kuska, Bartosz"]
[Result "1-0"]
[ECO "C11"]
[WhiteElo "1764"]
[BlackElo "1432"]
[Annotator "NA RC COMBH"]
[PlyCount "57"]
[EventDate "2022.08.13"]
[EventCountry "POL"]
[SourceTitle "playchess.com"]
[Source "ChessBase"]
[SourceQuality "1"]
[TimeControl "40/5400+30:1800+30"]

1. e4 {[%emt 0:05:02]} e6 {[%emt 0:00:07]} 2. d4 {[%emt 0:00:11]} d5 {[%emt 0:00:04]} 3. Nc3 {[%emt 0:01:19]} Nf6 {[%emt 0:00:11]} 4. Bg5 {[%emt 0:00:31]} dxe4 {[%emt 0:00:08]} 5. Nxe4 {[%emt 0:00:08]} Be7 {[%emt 0:00:05]} 6. Bxf6 {[%emt 0:03:05]} Bxf6 {[%emt 0:00:06]} 7. Nxf6+ {[%emt 0:01:07]} Qxf6 {[%emt 0:00:08]} 8. Nf3 {[%emt 0:00:25]} O-O {[%emt 0:01:11]} 9. Bd3 {[%emt 0:00:42]} Nc6 {[%emt 0:03:44]} 10. c3 {[%emt 0:03:25]} e5 {[%emt 0:14:02]} 11. d5 {[%emt 0:04:20]} e4 {[%emt 0:07:23]} 12. Bxe4 {[%emt 0:03:54]} Re8 {[%emt 0:01:03]} 13. Qe2 {[%emt 0:29:45]} Qf4 {[%emt 0:12:38]} 14. Nd2 {[%emt 0:03:54]} Bf5 {[%emt 0:03:14]} 15. f3 {[%emt 0:02:52]} Ne7 {[%emt 0:10:10]} 16. g3 {[%emt 0:05:05]} Qg5 {[%emt 0:02:20]} 17. c4 {[%emt 0:00:48]} Bh3 {[%emt 0:08:05]} 18. f4 {[%emt 0:01:58]} Qh6 {[%emt 0:00:44]} 19. O-O-O {[%emt 0:01:09]} f5 {[%emt 0:00:58]} 20. Bf3 Nc6 {[%emt 0:02:02]} 21. Qd3 {[%emt 0:03:06]} Nb4 {[%emt 0:00:32]} 22. Qb3 {[%emt 0:01:59]} Na6 {[%emt 0:10:49]} 23. Qb5 {[%emt 0:04:52]} Rab8 {[%emt 0:04:17]} 24. Rhe1 {[%emt 0:00:35]} Red8 {[%emt 0:00:43]} 25. Re6 {[%emt 0:05:21]} g6 {[%emt 0:00:03]} 26. d6 {[%emt 0:01:36]} cxd6 {[%emt 0:01:56]} 27. Qd5 {[%emt 0:00:22]} Kh8 {[%emt 0:00:37]} 28. Re7 {[%emt 0:01:04]} Qf8 {[%emt 0:00:59]} 29. Qd4+ {[%emt 0:00:19]} 1-0

[Event "58th Akiba Rubinstein D 2022"]
[Site "Polanica-Zdroj"]
[Date "2022.08.13"]
[Round "1.13"]
[White "Pietryk, Joanna"]
[Black "Markiewicz, Czeslaw"]
[Result "1/2-1/2"]
[ECO "C96"]
[WhiteElo "1417"]
[BlackElo "1750"]
[Annotator "NA RC COMBH"]
[PlyCount "93"]
[EventDate "2022.08.13"]
[EventCountry "POL"]
[SourceTitle "playchess.com"]
[Source "ChessBase"]
[SourceQuality "1"]
[TimeControl "40/5400+30:1800+30"]

1. e4 {[%emt 0:00:03]} e5 {[%emt 0:00:09]} 2. Nf3 {[%emt 0:00:06]} Nc6 {[%emt 0:00:07]} 3. Bb5 {[%emt 0:00:07]} a6 {[%emt 0:00:18]} 4. Ba4 {[%emt 0:00:10]} Nf6 {[%emt 0:00:21]} 5. O-O {[%emt 0:00:17]} Be7 {[%emt 0:00:36]} 6. Re1 {[%emt 0:00:14]} b5 {[%emt 0:00:47]} 7. Bb3 {[%emt 0:00:09]} d6 {[%emt 0:01:42]} 8. c3 {[%emt 0:00:44]} O-O {[%emt 0:00:21]} 9. h3 {[%emt 0:00:17]} Na5 {[%emt 0:00:33]} 10. Bc2 {[%emt 0:00:32]} c5 {[%emt 0:00:25]} 11. d3 {[%emt 0:03:36]} Qc7 {[%emt 0:00:34]} 12. Nbd2 {[%emt 0:01:48]} Bd7 {[%emt 0:02:04]} 13. Nf1 {[%emt 0:01:08]} Rac8 {[%emt 0:00:42]} 14. Bg5 {[%emt 0:01:54]} h6 {[%emt 0:03:51]} 15. Bh4 {[%emt 0:01:29]} c4 {[%emt 0:02:26]} 16. d4 {[%emt 0:02:04]} Nc6 {[%emt 0:03:50]} 17. Ne3 {[%emt 0:02:29]} exd4 {[%emt 0:07:03]} 18. Nxd4 {[%emt 0:02:53]} Nxd4 {[%emt 0:03:26]} 19. cxd4 {[%emt 0:01:35]} Rfe8 {[%emt 0:11:43]} 20. e5 {[%emt 0:06:07]} dxe5 {[%emt 0:06:12]} 21. dxe5 {[%emt 0:00:38]} Qxe5 {[%emt 0:08:51]} 22. Bxf6 {[%emt 0:08:36]} Bxf6 {[%emt 0:00:28]} 23. Qxd7 {[%emt 0:01:27]} Rcd8 {[%emt 0:01:53]} 24. Qc6 {[%emt 0:11:02]} Re6 {[%emt 0:06:47]} 25. Ng4 {[%emt 0:10:55]} Qxb2 {[%emt 0:01:34]} 26. Nxf6+ {[%emt 0:01:21]} Qxf6 {[%emt 0:00:37]} 27. Qc7 {[%emt 0:03:36]} Red6 {[%emt 0:05:41]} 28. Rad1 {[%emt 0:02:11]} Rxd1 {[%emt 0:01:00]} 29. Rxd1 {[%emt 0:00:14]} Rxd1+ {[%emt 0:00:11]} 30. Bxd1 {[%emt 0:00:08]} g6 {[%emt 0:01:20]} 31. g3 {[%emt 0:05:42]} Qa1 {[%emt 0:00:47]} 32. Qd8+ {[%emt 0:00:21]} Kg7 {[%emt 0:00:14]} 33. Qd2 {[%emt 0:00:18]} a5 {[%emt 0:02:54]} 34. Kg2 {[%emt 0:01:04]} b4 {[%emt 0:02:04]} 35. Ba4 {[%emt 0:03:58]} Qe5 {[%emt 0:03:47]} 36. Qc2 {[%emt 0:03:58]} Qd5+ {[%emt 0:02:06]} 37. Kh2 {[%emt 0:00:54]} h5 {[%emt 0:00:44]} 38. Qb2+ {[%emt 0:01:52]} c3 {[%emt 0:01:57]} 39. Qb3 {[%emt 0:03:20]} Qd4 {[%emt 0:01:49]} 40. Kg1 {[%emt 0:01:38]} Qe4 {[%emt 0:02:09]} 41. Qd1 {[%emt 0:31:17]} h4 {[%emt 0:30:42]} 42. Qg4 {[%emt 0:03:08]} Qb1+ {[%emt 0:02:22]} 43. Kg2 {[%emt 0:01:11]} c2 {[%emt 0:05:24]} 44. Qd4+ {[%emt 0:00:43]} Kg8 {[%emt 0:00:33]} 45. Qd8+ {[%emt 0:01:29]} Kg7 {[%emt 0:00:24]} 46. Qd4+ {[%emt 0:00:32]} Kg8 {[%emt 0:00:19]} 47. Qd8+ {[%emt 0:00:14]} 1/2-1/2

[Event "58th Akiba Rubinstein D 2022"]
[Site "Polanica-Zdroj"]
[Date "2022.08.13"]
[Round "1.14"]
[White "Straszewski, Tomasz"]
[Black "Gawlik, Olivier"]
[Result "1-0"]
[ECO "A05"]
[WhiteElo "1716"]
[BlackElo "1384"]
[Annotator "NA RC COMBH"]
[PlyCount "69"]
[EventDate "2022.08.13"]
[EventCountry "POL"]
[SourceTitle "playchess.com"]
[Source "ChessBase"]
[SourceQuality "1"]
[TimeControl "40/5400+30:1800+30"]

1. Nf3 {[%emt 0:03:29]} Nf6 {[%emt 0:00:48]} 2. g3 {[%emt 0:00:25]} g6 {[%emt 0:01:03]} 3. Bg2 {[%emt 0:00:20]} Bg7 {[%emt 0:00:33]} 4. O-O {[%emt 0:00:07]} O-O {[%emt 0:01:54]} 5. c4 {[%emt 0:00:13]} c5 {[%emt 0:06:06]} 6. Nc3 {[%emt 0:01:31]} Nc6 {[%emt 0:02:14]} 7. a3 {[%emt 0:01:43]} d6 {[%emt 0:08:30]} 8. Rb1 {[%emt 0:03:20]} Rb8 {[%emt 0:12:51]} 9. b4 {[%emt 0:18:08]} b6 {[%emt 0:08:33]} 10. b5 {[%emt 0:08:24]} Na5 {[%emt 0:06:29]} 11. d3 {[%emt 0:01:00]} Bb7 {[%emt 0:10:37]} 12. e4 {[%emt 0:04:04]} e6 {[%emt 0:05:01]} 13. Bf4 {[%emt 0:05:24]} Ra8 {[%emt 0:05:05]} 14. Qe2 {[%emt 0:05:17]} e5 {[%emt 0:05:55]} 15. Bg5 {[%emt 0:02:50]} Qd7 {[%emt 0:01:51]} 16. Bd2 {[%emt 0:01:26]} Bc8 {[%emt 0:01:40]} 17. Ne1 {[%emt 0:01:37]} Qe7 {[%emt 0:04:01]} 18. Nc2 {[%emt 0:01:09]} Bg4 {[%emt 0:01:01]} 19. f3 {[%emt 0:03:00]} Be6 {[%emt 0:00:16]} 20. f4 {[%emt 0:02:34]} exf4 {[%emt 0:05:04]} 21. gxf4 {[%emt 0:04:13]} Rac8 {[%emt 0:01:18]} 22. f5 {[%emt 0:02:03]} Bd7 {[%emt 0:00:22]} 23. Ne3 {[%emt 0:01:45]} Rfe8 {[%emt 0:05:43]} 24. Ned5 {[%emt 0:03:58]} Nxd5 {[%emt 0:00:40]} 25. Nxd5 {[%emt 0:00:13]} Qd8 {[%emt 0:00:12]} 26. f6 {[%emt 0:01:10]} Bf8 {[%emt 0:00:16]} 27. Qf2 {[%emt 0:04:23]} Be6 {[%emt 0:01:06]} 28. Ne3 {[%emt 0:02:41]} Qd7 {[%emt 0:00:58]} 29. Qh4 {[%emt 0:00:13]} Red8 {[%emt 0:00:31]} 30. Rf3 {[%emt 0:00:43]} Qe8 {[%emt 0:01:15]} 31. Nf5 {[%emt 0:03:37]} Bxf5 {[%emt 0:01:15]} 32. exf5 {[%emt 0:00:48]} Qe5 {[%emt 0:02:11]} 33. Kh1 {[%emt 0:04:26]} Rc7 {[%emt 0:01:05]} 34. Rh3 {[%emt 0:00:46]} h5 {[%emt 0:00:27]} 35. fxg6 {[%emt 0:00:08]} 1-0

[Event "58th Akiba Rubinstein D 2022"]
[Site "Polanica-Zdroj"]
[Date "2022.08.13"]
[Round "1.15"]
[White "Paziewski, Marcin"]
[Black "Ugorek, Kacper"]
[Result "1/2-1/2"]
[ECO "E92"]
[WhiteElo "1413"]
[BlackElo "1747"]
[Annotator "NA RC COMBH"]
[PlyCount "55"]
[EventDate "2022.08.13"]
[EventCountry "POL"]
[SourceTitle "playchess.com"]
[Source "ChessBase"]
[SourceQuality "1"]
[TimeControl "40/5400+30:1800+30"]

1. d4 {[%emt 0:00:31]} Nf6 {[%emt 0:00:05]} 2. c4 {[%emt 0:00:17]} g6 {[%emt 0:00:05]} 3. Nc3 {[%emt 0:00:41]} Bg7 {[%emt 0:00:06]} 4. e4 {[%emt 0:00:48]} d6 {[%emt 0:00:06]} 5. Be2 {[%emt 0:00:57]} O-O {[%emt 0:00:13]} 6. Nf3 {[%emt 0:00:46]} e5 {[%emt 0:00:14]} 7. Be3 {[%emt 0:00:39]} Nc6 {[%emt 0:02:28]} 8. h3 {[%emt 0:05:10]} exd4 {[%emt 0:07:32]} 9. Nxd4 {[%emt 0:05:55]} Nxd4 {[%emt 0:00:19]} 10. Bxd4 {[%emt 0:02:07]} Re8 {[%emt 0:01:13]} 11. f3 {[%emt 0:05:02]} Nh5 {[%emt 0:03:52]} 12. Qd2 {[%emt 0:11:43]} Bxd4 {[%emt 0:13:44]} 13. Qxd4 {[%emt 0:01:43]} Nf4 {[%emt 0:01:59]} 14. Nd5 {[%emt 0:13:04]} Nxd5 {[%emt 0:01:42]} 15. cxd5 {[%emt 0:04:52]} Qg5 {[%emt 0:07:04]} 16. Kf2 {[%emt 0:05:59]} Bd7 {[%emt 0:02:57]} 17. Rac1 {[%emt 0:05:01]} c5 {[%emt 0:03:59]} 18. dxc6 {[%emt 0:06:11]} Bxc6 {[%emt 0:00:06]} 19. Qxd6 {[%emt 0:03:40]} Rad8 {[%emt 0:00:39]} 20. Qb4 {[%emt 0:00:16]} Qd2 {[%emt 0:05:40]} 21. Qxd2 {[%emt 0:15:54]} Rxd2 {[%emt 0:00:01]} 22. Rb1 {[%emt 0:01:08]} Bb5 {[%emt 0:01:29]} 23. Rhe1 {[%emt 0:01:04]} f5 {[%emt 0:01:04]} 24. Ke3 {[%emt 0:01:08]} Rxe2+ {[%emt 0:00:11]} 25. Rxe2 {[%emt 0:00:09]} Bxe2 {[%emt 0:00:17]} 26. Kxe2 {[%emt 0:00:04]} fxe4 {[%emt 0:00:08]} 27. fxe4 {[%emt 0:01:23]} Rxe4+ {[%emt 0:00:06]} 28. Kd3 {[%emt 0:00:29]} 1/2-1/2

[Event "58th Akiba Rubinstein D 2022"]
[Site "Polanica-Zdroj"]
[Date "2022.08.13"]
[Round "1.16"]
[White "Pieczulis, Blazej"]
[Black "Grudzinski, Krzysztof"]
[Result "1-0"]
[ECO "E16"]
[WhiteElo "1720"]
[BlackElo "1520"]
[Annotator "NA RC COMBH"]
[PlyCount "85"]
[EventDate "2022.08.13"]
[EventCountry "POL"]
[SourceTitle "playchess.com"]
[Source "ChessBase"]
[SourceQuality "1"]
[TimeControl "40/5400+30:1800+30"]

1. d4 {[%emt 0:00:27]} Nf6 {[%emt 0:00:19]} 2. c4 {[%emt 0:00:43]} e6 {[%emt 0:00:17]} 3. Nf3 {[%emt 0:00:29]} Bb4+ {[%emt 0:01:01]} 4. Bd2 {[%emt 0:00:22]} Qe7 {[%emt 0:00:28]} 5. Qc2 {[%emt 0:00:47]} Bxd2+ {[%emt 0:03:27]} 6. Nbxd2 {[%emt 0:00:18]} d6 {[%emt 0:00:18]} 7. e4 {[%emt 0:00:47]} e5 {[%emt 0:00:13]} 8. d5 {[%emt 0:00:42]} a5 {[%emt 0:01:54]} 9. Bd3 {[%emt 0:03:34]} O-O {[%emt 0:00:41]} 10. O-O {[%emt 0:00:29]} Na6 {[%emt 0:04:03]} 11. a3 {[%emt 0:00:15]} Bd7 {[%emt 0:04:36]} 12. Qc3 {[%emt 0:05:41]} a4 {[%emt 0:00:47]} 13. Rae1 {[%emt 0:05:15]} Nc5 {[%emt 0:03:26]} 14. Bc2 {[%emt 0:02:32]} Nh5 15. Re3 {[%emt 0:11:57]} g6 {[%emt 0:23:38]} 16. Ne1 {[%emt 0:05:19]} f5 {[%emt 0:30:18]} 17. exf5 {[%emt 0:00:49]} gxf5 {[%emt 0:00:09]} 18. f4 {[%emt 0:00:07]} e4 {[%emt 0:01:50]} 19. g4 {[%emt 0:29:31]} fxg4 {[%emt 0:01:16]} 20. Nxe4 {[%emt 0:03:33]} Nxe4 {[%emt 0:00:57]} 21. Rxe4 {[%emt 0:00:51]} Qg7 {[%emt 0:00:45]} 22. Qxg7+ {[%emt 0:07:59]} Nxg7 {[%emt 0:01:26]} 23. Re7 {[%emt 0:00:14]} Rad8 {[%emt 0:00:15]} 24. f5 {[%emt 0:00:48]} Nxf5 {[%emt 0:05:39]} 25. Rxd7 {[%emt 0:00:17]} Rxd7 {[%emt 0:00:32]} 26. Bxf5 {[%emt 0:00:04]} Re7 {[%emt 0:01:38]} 27. Be6+ {[%emt 0:01:09]} Kg7 {[%emt 0:00:16]} 28. Rxf8 {[%emt 0:03:50]} Kxf8 {[%emt 0:00:09]} 29. Kg2 {[%emt 0:00:01]} Rg7 {[%emt 0:00:11]} 30. Kg3 {[%emt 0:00:17]} Ke7 {[%emt 0:00:34]} 31. Nd3 {[%emt 0:00:13]} Kf6 {[%emt 0:00:54]} 32. Kh4 {[%emt 0:00:20]} c6 {[%emt 0:01:44]} 33. Kg3 {[%emt 0:07:55]} cxd5 {[%emt 0:01:13]} 34. Bxd5 {[%emt 0:00:37]} Kg5 {[%emt 0:02:45]} 35. Nf2 {[%emt 0:00:12]} Kf5 36. Ne4 {[%emt 0:00:05]} Ke5 {[%emt 0:02:43]} 37. Nc3 {[%emt 0:00:03]} Kd4 {[%emt 0:04:07]} 38. Nxa4 {[%emt 0:00:05]} b5 {[%emt 0:00:12]} 39. Nc3 {[%emt 0:02:27]} bxc4 {[%emt 0:00:13]} 40. a4 {[%emt 0:02:09]} Kc5 {[%emt 0:02:14]} 41. Bg2 {[%emt 0:32:45]} Kb4 {[%emt 0:32:10]} 42. Bd5 {[%emt 0:01:10]} Kb3 {[%emt 0:01:02]} 43. Nb5 {[%emt 0:00:10]} 1-0

[Event "58th Akiba Rubinstein D 2022"]
[Site "Polanica-Zdroj"]
[Date "2022.08.13"]
[Round "1.17"]
[White "Soszka, Szymon"]
[Black "Bem, Tymoteusz"]
[Result "0-1"]
[ECO "D10"]
[WhiteElo "1355"]
[BlackElo "1679"]
[Annotator "NA RC COMBH"]
[PlyCount "48"]
[EventDate "2022.08.13"]
[EventCountry "POL"]
[SourceTitle "playchess.com"]
[Source "ChessBase"]
[SourceQuality "1"]
[TimeControl "40/5400+30:1800+30"]

1. d4 {[%emt 0:11:22]} d5 {[%emt 0:00:14]} 2. c4 {[%emt 0:00:07]} c6 {[%emt 0:00:06]} 3. Nc3 {[%emt 0:00:03]} Nf6 {[%emt 0:00:05]} 4. e3 {[%emt 0:00:04]} Bf5 {[%emt 0:00:04]} 5. cxd5 {[%emt 0:00:10]} cxd5 {[%emt 0:00:06]} 6. Bd3 {[%emt 0:00:37]} Bxd3 {[%emt 0:03:24]} 7. Qxd3 {[%emt 0:00:09]} Nc6 {[%emt 0:01:44]} 8. Nf3 {[%emt 0:01:09]} e6 {[%emt 0:02:16]} 9. Ne5 {[%emt 0:02:41]} Bd6 {[%emt 0:15:21]} 10. f4 {[%emt 0:01:41]} O-O {[%emt 0:01:08]} 11. O-O {[%emt 0:01:35]} Ne7 {[%emt 0:11:08]} 12. h3 {[%emt 0:12:29]} Nf5 {[%emt 0:02:59]} 13. Rf3 {[%emt 0:05:08]} Be7 {[%emt 0:02:53]} 14. g4 {[%emt 0:01:40]} Nd6 {[%emt 0:00:23]} 15. Bd2 {[%emt 0:01:58]} Nfe4 {[%emt 0:00:57]} 16. Qe2 {[%emt 0:02:40]} Rc8 {[%emt 0:19:36]} 17. Raf1 {[%emt 0:03:28]} b5 {[%emt 0:03:56]} 18. Nd3 {[%emt 0:06:22]} b4 {[%emt 0:08:08]} 19. Nb1 {[%emt 0:07:55]} a5 {[%emt 0:02:44]} 20. Be1 {[%emt 0:06:39]} Qb6 {[%emt 0:03:36]} 21. Nf2 {[%emt 0:03:23]} Rc1 {[%emt 0:02:03]} 22. Qd3 {[%emt 0:04:45]} Rfc8 {[%emt 0:01:21]} 23. Nd2 {[%emt 0:03:04]} Bh4 {[%emt 0:01:56]} 24. Qb3 {[%emt 0:04:07]} Rxe1 {[%emt 0:01:20]} 0-1